bitfinex/quotes_SOLUSD_20240716
["timestamp","ask_amount","ask_price","bid_price","bid_amount"]
[1721130842606,51.8549,157.36,157.32,0.8562347]
[1721130842799,0.5,157.35,157.32,0.8562347]
[1721130843002,6.6957,157.34,157.32,0.8562347]
[1721130843204,45.5,157.33,157.32,0.8562347]
[1721130843396,51.856,157.33,157.32,0.8562347]
[1721130843601,52.196,157.33,157.32,0.8562347]
[1721130843793,45.5,157.33,157.32,0.8562347]
[1721130844009,51.856,157.33,157.32,0.8562347]
[1721130844219,45.34,157.33,157.32,0.8562347]
[1721130844424,45.5,157.33,157.32,0.8562347]
[1721130845122,0.5,157.34,157.32,0.8562347]
[1721130845700,6.8557,157.34,157.32,0.8562347]
[1721130845916,0.5,157.34,157.32,0.8562347]
[1721130846424,45.5,157.34,157.32,0.8562347]
[1721130847027,6.356,157.33,157.32,0.8562347]
[1721130847325,51.356,157.33,157.32,0.8562347]
[1721130848926,45.0,157.33,157.32,0.8562347]
[1721130849904,45.5,157.33,157.32,0.8562347]
[1721130850212,10.5,157.37,157.32,0.8562347]
[1721130850409,45.34,157.36,157.32,0.8562347]
[1721130850722,0.5,157.35,157.32,0.8562347]
[1721130851527,6.8553,157.35,157.32,0.8562347]
[1721130851838,0.5,157.35,157.32,0.8562347]
[1721130852337,6.356,157.33,157.32,0.8562347]
[1721130852512,51.356,157.33,157.32,0.8562347]
[1721130853343,45.0,157.33,157.32,0.8562347]
[1721130853500,45.5,157.33,157.32,0.8562347]
[1721130855040,45.0,157.33,157.32,0.8562347]
[1721130856332,45.17,157.33,157.32,0.8562347]
[1721130857411,61.526,157.33,157.32,0.8562347]
[1721130858321,61.696,157.33,157.32,0.8562347]
[1721130859135,45.34,157.33,157.32,0.8562347]
[1721130859735,45.17,157.33,157.32,0.8562347]
[1721130859927,61.696,157.33,157.32,0.8562347]
[1721130860236,45.0,157.33,157.32,0.8562347]
[1721130860419,45.5,157.33,157.32,0.8562347]
[1721130860618,45.67,157.33,157.32,0.8562347]
[1721130862224,45.5,157.33,157.32,0.8562347]
[1721130862433,45.0,157.33,157.32,0.8562347]
[1721130867149,0.5,157.34,157.32,19.5162347]
[1721130867336,0.5,157.36,157.33,18.66]
[1721130867522,0.5,157.36,157.35,18.66]
[1721130867718,6.8543,157.38,157.35,18.66]
[1721130868944,0.17,157.37,157.35,18.66]
[1721130869318,45.17,157.37,157.35,18.66]
[1721130869630,0.5,157.36,157.35,18.66]
[1721130869836,0.5,157.36,157.34,18.66]
[1721130870339,6.3557,157.34,157.32,0.8562347]
[1721130870550,45.5,157.33,157.32,0.8562347]
[1721130871144,61.856,157.33,157.32,0.8562347]
[1721130871330,62.196,157.33,157.32,0.8562347]
[1721130872414,61.356,157.33,157.32,0.8562347]
[1721130872739,55.5,157.33,157.32,0.8562347]
[1721130873245,61.856,157.33,157.32,0.8562347]
[1721130876349,45.5,157.33,157.32,0.8562347]
[1721130876768,45.0,157.33,157.32,0.8562347]
[1721130876938,0.5,157.35,157.32,19.5162347]
[1721130877135,0.5,157.37,157.34,18.66]
[1721130877555,0.5,157.37,157.35,18.66]
[1721130878248,51.8545,157.37,157.32,0.8562347]
[1721130878565,51.8545,157.37,157.34,18.66]
[1721130878566,6.3552,157.35,157.34,18.66]
[1721130878728,0.5,157.36,157.34,18.66]
[1721130879069,0.5,157.36,157.33,18.66]
[1721130880936,45.5,157.37,157.35,18.66]
[1721130881276,0.5,157.37,157.35,18.66]
[1721130882052,0.5,157.37,157.34,18.66]
[1721130883454,6.8544,157.37,157.34,18.66]
[1721130883759,51.3549,157.36,157.33,18.66]
[1721130883963,0.5,157.35,157.32,19.5162347]
[1721130885667,0.5,157.35,157.32,0.8562347]
[1721130885870,0.5,157.35,157.32,19.5162347]
[1721130886066,0.5,157.35,157.32,0.8562347]
[1721130887180,0.5,157.35,157.32,19.5162347]
[1721130888180,0.5,157.35,157.32,0.8562347]
[1721130888479,0.5,157.35,157.33,18.66]
[1721130888978,0.5,157.35,157.32,19.5162347]
[1721130889159,10.5,157.35,157.32,0.8562347]
[1721130889360,45.0,157.34,157.32,0.8562347]
[1721130889671,0.5,157.33,157.32,0.8562347]
[1721130891452,0.5,157.36,157.32,19.5162347]
[1721130891657,0.5,157.36,157.35,18.66]
[1721130891856,0.5,157.38,157.35,18.66]
[1721130892078,0.5,157.38,157.32,0.8562347]
[1721130892079,0.5,157.38,157.34,18.66]
[1721130892894,45.5,157.38,157.34,18.66]
[1721130893575,45.5,157.38,157.35,18.66]
[1721130893968,0.5,157.38,157.36,18.66]
[1721130894170,0.5,157.38,157.37,18.66]
[1721130895353,45.5,157.38,157.37,18.66]
[1721130896280,0.5,157.39,157.37,18.66]
[1721130896485,0.5,157.41,157.38,18.66]
[1721130896683,45.67,157.41,157.39,18.66]
[1721130896883,52.0228,157.41,157.39,18.66]
[1721130897272,0.5,157.41,157.39,18.66]
[1721130897591,6.8529,157.41,157.38,18.66]
[1721130897980,6.8529,157.41,157.37,18.66]
[1721130899289,45.0,157.4,157.37,18.66]
[1721130899489,0.5,157.39,157.37,18.66]
[1721130900005,0.5,157.39,157.34,15.7059]
[1721130900414,0.5,157.39,157.36,18.66]
[1721130900787,0.5,157.39,157.34,15.7059]
[1721130900983,0.5,157.39,157.35,18.66]
[1721130901986,10.0,157.38,157.34,15.7059]
[1721130902186,0.5,157.37,157.34,18.66]
[1721130902384,45.5,157.37,157.34,18.66]
[1721130902599,51.8544,157.37,157.33,18.66]
[1721130902889,70.5144,157.37,157.32,19.5162347]
[1721130903912,10.0,157.36,157.32,0.8562347]
[1721130904110,45.5,157.35,157.32,19.5162347]
[1721130905093,45.5,157.35,157.33,18.66]
[1721130905916,45.5,157.35,157.32,0.8562347]
[1721130906411,45.5,157.35,157.32,19.5162347]
[1721130908419,45.5,157.35,157.33,18.66]
[1721130908594,0.5,157.34,157.33,18.66]
[1721130909507,0.5,157.34,157.32,19.5162347]
[1721130911021,0.5,157.34,157.33,18.66]
[1721130911315,45.5,157.35,157.33,18.66]
[1721130911611,0.5,157.37,157.34,18.66]
[1721130911813,6.853,157.41,157.36,18.66]
[1721130911988,0.5,157.41,157.38,18.66]
[1721130912595,6.8528,157.41,157.38,18.66]
[1721130912815,6.8528,157.41,157.33,1.27100953]
[1721130913022,6.3532,157.4,157.37,18.66]
[1721130913231,0.5,157.39,157.37,18.66]
[1721130913538,45.5,157.39,157.37,18.66]
[1721130914711,45.5,157.39,157.32,0.8562347]
[1721130914919,51.8536,157.39,157.36,18.66]
[1721130915511,51.8536,157.39,157.35,18.66]
[1721130917125,45.5,157.39,157.35,18.66]
[1721130917727,51.8536,157.39,157.35,18.66]
[1721130919418,45.5,157.39,157.35,18.66]
[1721130921115,45.5,157.39,157.32,0.8562347]
[1721130921321,45.5,157.39,157.35,18.66]
[1721130922425,45.5,157.39,157.36,18.66]
[1721130923100,45.5,157.39,157.35,18.66]
[1721130923300,45.5,157.39,157.36,18.66]
[1721130923799,10.0,157.33,157.32,0.8562347]
[1721130924018,29.0,157.33,157.32,0.8562347]
[1721130924221,74.5,157.33,157.32,0.8562347]
[1721130924605,45.84,157.33,157.32,0.8562347]
[1721130924808,45.67,157.33,157.32,0.8562347]
[1721130925912,55.67,157.33,157.32,0.8562347]
[1721130928621,45.67,157.33,157.32,0.8562347]
[1721130929724,45.5,157.33,157.32,0.8562347]
[1721130930243,45.67,157.33,157.32,0.8562347]
[1721130930445,55.67,157.33,157.32,0.8562347]
[1721130932034,45.67,157.33,157.32,0.8562347]
[1721130932261,45.5,157.33,157.32,0.8562347]
[1721130932419,0.5,157.33,157.32,0.8562347]
[1721130932726,0.5,157.34,157.32,0.8562347]
[1721130933311,0.5,157.35,157.32,0.8562347]
[1721130933515,0.5,157.35,157.34,18.66]
[1721130933718,19.16,157.38,157.34,18.66]
[1721130933930,45.34,157.37,157.34,18.66]
[1721130934158,0.5,157.36,157.34,18.66]
[1721130934547,0.5,157.36,157.35,18.66]
[1721130934743,0.5,157.37,157.35,18.66]
[1721130935137,0.5,157.37,157.36,18.66]
[1721130935643,0.5,157.38,157.36,18.66]
[1721130935844,0.5,157.4,157.37,18.66]
[1721130936728,0.5,157.41,157.37,18.66]
[1721130937955,10.17,157.4,157.36,18.66]
[1721130938144,45.5,157.39,157.32,16.5766347]
[1721130938351,64.16,157.39,157.34,18.66]
[1721130940554,64.16,157.39,157.32,16.5766347]
[1721130940739,64.16,157.39,157.34,18.66]
[1721130941459,45.5,157.39,157.35,18.66]
[1721130947749,45.5,157.39,157.37,18.66]
[1721130947942,0.5,157.4,157.38,18.66]
[1721130948537,0.5,157.4,157.39,18.66]
[1721130949042,10.0,157.42,157.39,18.66]
[1721130949244,0.5,157.41,157.39,18.66]
[1721130949539,45.5,157.41,157.39,18.66]
[1721130950235,0.5,157.41,157.39,18.66]
[1721130950441,0.5,157.43,157.4,18.66]
[1721130950669,7.10647804,157.44,157.42,18.66]
[1721130950966,6.60647804,157.44,157.43,18.66]
[1721130951973,0.5,157.49,157.43,37.32]
[1721130952144,0.5,157.49,157.41,1.27039128]
[1721130952145,0.5,157.51,157.48,18.66]
[1721130952341,0.5,157.51,157.5,18.66]
[1721130952587,0.5,157.53,157.5,18.66]
[1721130952758,0.5,157.53,157.51,18.66]
[1721130953163,0.5,157.55,157.51,18.66]
[1721130954264,6.8472,157.55,157.51,18.66]
[1721130954463,10.5,157.54,157.44,90.466]
[1721130954643,10.5,157.54,157.5,18.66]
[1721130954970,16.8477,157.54,157.5,18.66]
[1721130955343,6.348,157.53,157.44,15.826]
[1721130955539,6.8484,157.52,157.48,18.66]
[1721130955849,0.5,157.51,157.48,18.66]
[1721130956345,0.5,157.51,157.44,15.826]
[1721130959466,0.5,157.51,157.45,1.27003084]
[1721130960365,10.0,157.54,157.44,15.826]
[1721130960568,45.5,157.53,157.46,37.23]
[1721130960772,0.5,157.53,157.46,37.23]
[1721130961075,0.5,157.54,157.47,1.26984273]
[1721130961372,38.7833,157.58,157.47,1.26984273]
[1721130961567,6.3464,157.57,157.47,1.26984273]
[1721130961766,6.3464,157.57,157.49,37.23]
[1721130962147,28.7833,157.58,157.49,37.23]
[1721130962344,6.1456,157.58,157.5,1.26973069]
[1721130963348,22.7216,157.61,157.5,17.03623069]
[1721130963548,6.3452,157.6,157.5,15.7665]
[1721130964168,22.7216,157.61,157.5,15.7665]
[1721130964372,6.3454,157.6,157.5,15.7665]
[1721130964560,6.3454,157.6,157.51,1.26943028]
[1721130965073,22.7214,157.61,157.52,37.23]
[1721130965273,6.3452,157.6,157.52,37.23]
[1721130965488,22.7215,157.61,157.52,37.23]
[1721130966383,45.0,157.6,157.52,37.23]
[1721130966555,6.3436,157.64,157.53,1.26935489]
[1721130967170,10.0,157.65,157.55,37.23]
[1721130967385,10.0,157.65,157.57,15.8416]
[1721130967552,10.0,157.65,157.58,1.26905485]
[1721130967958,12.749,157.66,157.58,1.26905485]
[1721130968162,6.406,157.66,157.58,1.26905485]
[1721130968378,12.7489,157.66,157.57,15.8416]
[1721130968553,6.406,157.66,157.57,15.8416]
[1721130969181,12.7488,157.66,157.57,15.8416]
[1721130969560,6.3432,157.65,157.57,15.8416]
[1721130970174,45.0,157.64,157.57,15.8416]
[1721130970572,45.0,157.65,157.57,15.8416]
[1721130970881,0.17,157.64,157.57,15.8416]
[1721130971187,45.0,157.65,157.57,15.8416]
[1721130971361,45.0,157.65,157.58,1.26898378]
[1721130973158,10.0,157.64,157.57,15.8416]
[1721130973369,10.0,157.62,157.57,15.8416]
[1721130973586,10.0,157.62,157.52,37.23]
[1721130973793,45.0,157.61,157.53,15.0528]
[1721130973961,51.5148,157.61,157.53,15.0528]
[1721130974164,10.0,157.6,157.53,15.0528]
[1721130974370,45.0,157.59,157.53,15.0528]
[1721130975886,0.34,157.58,157.53,15.0528]
[1721130976403,10.0,157.58,157.53,15.0528]
[1721130976574,45.0,157.57,157.53,15.0528]
[1721130979577,6.3444,157.62,157.53,15.0528]
[1721130979578,10.0,157.62,157.53,15.0528]
[1721130979779,10.0,157.58,157.53,15.0528]
[1721130980002,45.0,157.57,157.53,15.0528]
[1721130980185,0.34,157.59,157.53,15.0528]
[1721130980507,45.0,157.59,157.53,15.0528]
[1721130982914,28.07730101,157.66,157.54,1.26943837]
[1721130983081,6.3433,157.65,157.54,7.37543837]
[1721130983281,28.07730101,157.66,157.54,7.37543837]
[1721130983282,24.42020101,157.66,157.54,7.37543837]
[1721130983697,10.0,157.65,157.54,7.37543837]
[1721130983884,16.3433,157.65,157.54,6.106]
[1721130984582,10.0,157.63,157.55,1.26907363]
[1721130984777,10.0,157.61,157.54,6.106]
[1721130985004,16.3443,157.63,157.54,6.106]
[1721130985307,45.34,157.62,157.54,7.37524972]
[1721130986012,45.34,157.62,157.54,6.106]
[1721130987692,51.6843,157.62,157.54,6.106]
[1721130987890,10.0,157.6,157.54,6.106]
[1721130988086,10.0,157.6,157.53,16.32204986]
[1721130988087,45.0,157.59,157.53,15.0528]
[1721130989389,10.0,157.56,157.49,15.7575]
[1721130989595,45.0,157.55,157.49,15.7575]
[1721130990300,10.17,157.54,157.49,15.7575]
[1721130990615,10.17,157.54,157.45,15.7575]
[1721130990616,16.3489,157.51,157.45,15.7575]
[1721130990912,45.17,157.5,157.45,15.7575]
[1721130992719,45.0,157.5,157.45,15.7575]
[1721130993390,10.0,157.49,157.45,15.7575]
[1721130993591,45.0,157.48,157.45,15.7575]
[1721130996826,0.17,157.52,157.45,15.7575]
[1721130996995,10.0,157.51,157.45,15.7575]
[1721130997195,45.0,157.5,157.45,15.7575]
[1721130997691,45.0,157.51,157.45,15.7575]
[1721130997892,10.0,157.51,157.45,15.7575]
[1721130998093,45.0,157.5,157.45,15.7575]
[1721131001308,10.0,157.53,157.45,15.7575]
[1721131001511,45.0,157.52,157.45,15.7575]
[1721131003217,10.0,157.5,157.45,15.7575]
[1721131003390,45.0,157.49,157.45,15.7575]
[1721131004492,10.0,157.52,157.45,15.7575]
[1721131004822,45.17,157.51,157.45,15.7575]
[1721131005148,45.34,157.51,157.45,15.7575]
[1721131005429,51.6889,157.51,157.45,15.7575]
[1721131005921,45.0,157.51,157.45,15.7575]
[1721131007707,45.0,157.52,157.45,15.7575]
[1721131008113,55.0,157.52,157.45,15.7575]
[1721131008430,6.3493,157.5,157.45,15.7575]
[1721131008616,55.0,157.52,157.45,15.7575]
[1721131008943,0.34,157.51,157.45,15.7575]
[1721131010848,16.6888,157.51,157.45,15.7575]
[1721131011135,45.0,157.5,157.45,15.7575]
[1721131011635,55.0,157.51,157.45,15.7575]
[1721131011808,61.3488,157.51,157.45,15.7575]
[1721131012010,55.0,157.51,157.45,15.7575]
[1721131012235,18.62,157.48,157.45,15.7575]
[1721131012951,55.0,157.51,157.45,15.7575]
[1721131012952,18.62,157.47,157.45,15.7575]
[1721131014017,18.62,157.48,157.45,15.7575]
[1721131015022,10.0,157.49,157.45,15.7575]
[1721131015023,18.62,157.47,157.45,15.7575]
[1721131015251,0.17,157.5,157.45,15.7575]
[1721131015443,18.62,157.49,157.45,15.7575]
[1721131015645,28.62,157.49,157.45,15.7575]
[1721131015823,63.62,157.48,157.45,15.7575]
[1721131016220,10.0,157.59,157.47,33.978]
[1721131016422,18.62,157.58,157.48,1.26947496]
[1721131016726,10.0,157.57,157.53,18.62]
[1721131017238,18.62,157.56,157.52,18.62]
[1721131017818,45.0,157.55,157.52,18.62]
[1721131018220,45.0,157.55,157.49,1.26959912]
[1721131018440,45.0,157.56,157.49,1.26959912]
[1721131019843,10.0,157.59,157.49,1.26959912]
[1721131020217,10.0,157.59,157.5,15.358]
[1721131020417,16.3451,157.61,157.51,1.26951128]
[1721131020730,10.0,157.61,157.53,6.3325]
[1721131020922,16.3439,157.63,157.55,15.358]
[1721131022236,45.17,157.62,157.55,15.358]
[1721131022454,51.5144,157.62,157.55,15.358]
[1721131023536,0.17,157.61,157.55,15.358]
[1721131024751,0.17,157.61,157.58,15.8645]
[1721131024918,0.17,157.61,157.58,22.2104]
[1721131025354,0.17,157.61,157.58,15.8645]
[1721131025658,6.5148,157.61,157.58,15.8645]
[1721131025956,45.0,157.6,157.58,15.8645]
[1721131026724,6.5145,157.62,157.58,15.8645]
[1721131026955,45.0,157.61,157.58,15.8645]
[1721131027422,55.0,157.61,157.56,6.3466]
[1721131027624,6.5153,157.6,157.56,6.3466]
[1721131027827,45.0,157.59,157.56,6.3466]
[1721131029555,45.17,157.6,157.56,6.3466]
[1721131029851,10.0,157.59,157.55,37.5723]
[1721131030065,45.0,157.58,157.55,37.5723]
[1721131030926,45.0,157.58,157.56,6.3465]
[1721131031134,45.17,157.59,157.56,6.3465]
[1721131031339,55.17,157.59,157.56,6.3465]
[1721131031834,45.17,157.59,157.56,6.3465]
[1721131032135,45.0,157.59,157.57,6.3463]
[1721131032339,45.17,157.6,157.58,6.3459]
[1721131032554,0.17,157.6,157.58,6.3459]
[1721131033263,0.17,157.6,157.55,21.7048]
[1721131033453,10.0,157.59,157.55,21.7048]
[1721131033760,45.0,157.58,157.56,6.3467]
[1721131034340,42.5,157.58,157.56,6.3467]
[1721131036663,42.5,157.58,157.55,21.7051]
[1721131036849,42.5,157.58,157.56,6.3467]
[1721131037359,42.5,157.58,157.55,21.705]
[1721131037964,42.092241,157.57,157.55,21.705]
[1721131038137,42.092241,157.56,157.55,21.705]
[1721131040355,42.092241,157.56,157.55,40.305]
[1721131041059,42.092241,157.56,157.54,40.816]
[1721131041231,45.0,157.55,157.54,22.216]
[1721131041437,45.0,157.55,157.54,34.4685]
[1721131042047,45.0,157.55,157.54,40.816]
[1721131042347,42.092241,157.56,157.55,6.3471]
[1721131042556,35.745141,157.55,157.54,34.4685]
[1721131043661,35.745141,157.55,157.54,40.816]
[1721131045864,35.745141,157.55,157.54,22.216]
[1721131046071,35.745141,157.55,157.54,40.816]
[1721131047373,35.745141,157.55,157.54,22.216]
[1721131047573,35.745141,157.55,157.54,40.816]
[1721131049771,35.745141,157.55,157.52,6.3481]
[1721131049972,35.745141,157.55,157.54,18.6]
[1721131050145,35.745141,157.55,157.54,24.9475]
[1721131050654,35.745141,157.55,157.54,18.6]
[1721131053179,35.745141,157.55,157.49,54.42370127]
[1721131053350,80.745141,157.55,157.54,18.6]
[1721131054244,80.745141,157.55,157.54,24.9475]
[1721131054444,80.745141,157.55,157.54,18.6]
[1721131055076,16.3477,157.54,157.49,47.89430127]
[1721131055372,45.0,157.53,157.51,18.6]
[1721131056043,36.085141,157.55,157.52,18.6]
[1721131056244,45.0,157.54,157.52,24.9481]
[1721131056680,45.0,157.54,157.52,18.6]
[1721131056968,45.0,157.54,157.53,18.6]
[1721131057151,45.0,157.54,157.52,18.6]
[1721131057477,61.3476,157.54,157.52,18.6]
[1721131057651,51.3476,157.54,157.52,18.6]
[1721131057853,45.0,157.54,157.52,18.6]
[1721131058766,55.0,157.54,157.52,18.6]
[1721131059070,61.3477,157.54,157.52,18.6]
[1721131059776,0.34,157.53,157.49,54.24370127]
[1721131059968,0.34,157.53,157.52,18.6]
[1721131061271,0.34,157.53,157.5,6.3491]
[1721131061453,6.688,157.53,157.51,18.6]
[1721131061654,45.0,157.52,157.49,38.27880127]
[1721131061876,45.0,157.52,157.51,18.6]
[1721131068160,45.0,157.52,157.5,6.3491]
[1721131068361,45.34,157.53,157.51,18.6]
[1721131068574,45.34,157.53,157.5,24.9491]
[1721131069089,45.34,157.53,157.51,18.6]
[1721131069985,45.34,157.53,157.5,6.3491]
[1721131070170,45.34,157.53,157.51,18.6]
[1721131070775,42.092441,157.55,157.51,24.9487]
[1721131071092,42.092441,157.55,157.53,18.6]
[1721131071093,35.745141,157.55,157.53,18.6]
[1721131072382,35.745141,157.55,157.54,18.6]
[1721131072580,80.745141,157.55,157.54,18.6]
[1721131072760,35.745141,157.55,157.54,18.6]
[1721131074179,42.092241,157.55,157.54,18.6]
[1721131074385,87.092241,157.55,157.54,18.6]
[1721131074693,80.745141,157.55,157.54,18.6]
[1721131074860,87.092641,157.55,157.53,18.6]
[1721131075060,6.3475,157.54,157.53,18.6]
[1721131075281,10.0,157.53,157.48,31.26452861]
[1721131075466,45.0,157.52,157.5,18.6]
[1721131078066,45.0,157.52,157.51,18.6]
[1721131079962,51.3484,157.52,157.51,18.6]
[1721131080283,45.0,157.52,157.51,18.6]
[1721131080603,6.5177,157.54,157.51,18.6]
[1721131080758,45.0,157.53,157.52,18.6]
[1721131081764,42.092441,157.55,157.52,18.6]
[1721131082097,42.092441,157.55,157.54,18.6]
[1721131082098,35.745141,157.55,157.54,18.6]
[1721131082292,35.745141,157.55,157.54,24.9475]
[1721131087783,35.745141,157.55,157.54,18.6]
[1721131088184,35.745141,157.55,157.54,24.9475]
[1721131089086,35.745141,157.55,157.51,15.5998]
[1721131089394,35.745141,157.55,157.54,18.6]
[1721131090600,35.745141,157.55,157.54,24.9475]
[1721131090981,35.745141,157.55,157.54,18.6]
[1721131092300,35.745141,157.55,157.54,6.3475]
[1721131092478,35.745141,157.55,157.54,18.6]
[1721131093004,35.745141,157.55,157.53,18.6]
[1721131093503,42.092441,157.55,157.53,18.6]
[1721131094002,35.745141,157.55,157.53,18.6]
[1721131096404,35.745141,157.55,157.54,18.6]
[1721131096607,80.745141,157.55,157.54,18.6]
[1721131097905,35.745141,157.55,157.54,24.9475]
[1721131098607,35.745141,157.55,157.5,1.2695984]
[1721131098808,35.745141,157.55,157.54,18.6]
[1721131099007,35.745141,157.55,157.54,24.9475]
[1721131099222,35.745141,157.55,157.54,26.21686379]
[1721131101495,35.745141,157.55,157.54,24.9475]
[1721131102827,35.745141,157.55,157.54,6.3475]
[1721131103118,35.745141,157.55,157.54,24.9475]
[1721131104813,19.078541,157.55,157.54,65.4526]
[1721131105118,1.26898907,157.68,157.67,6.3423]
[1721131105421,22.6217,157.73,157.66,15.8565]
[1721131105422,17.60975458,157.7,157.66,15.8565]
[1721131105590,17.60975458,157.7,157.68,18.6]
[1721131105591,1.26835458,157.7,157.68,18.6]
[1721131106015,1.26835458,157.7,157.65,15.8574]
[1721131106016,1.26835458,157.7,157.69,18.6]
[1721131106721,7.60945458,157.7,157.69,18.6]
[1721131106905,6.3411,157.7,157.69,18.6]
[1721131107104,6.3415,157.69,157.68,18.6]
[1721131107308,52.60985458,157.69,157.68,18.6]
[1721131108129,46.26835458,157.69,157.68,18.6]
[1721131109196,52.60985458,157.69,157.68,23.25202906]
[1721131111495,46.26835458,157.69,157.68,23.25202906]
[1721131112726,46.26835458,157.69,157.68,4.65202906]
[1721131112931,46.26835458,157.69,157.68,23.25202906]
[1721131113427,62.60985458,157.69,157.68,4.65202906]
[1721131113608,62.77985458,157.69,157.68,4.65202906]
[1721131115835,62.94985458,157.69,157.68,4.65202906]
[1721131116524,81.54985458,157.69,157.68,4.65202906]
[1721131117031,91.54985458,157.69,157.68,4.65202906]
[1721131117534,72.94985458,157.69,157.68,4.65202906]
[1721131117721,91.54985458,157.69,157.68,4.65202906]
[1721131118123,113.31345458,157.69,157.68,4.65202906]
[1721131121313,94.71345458,157.69,157.68,4.65202906]
[1721131121565,84.71345458,157.69,157.68,4.65202906]
[1721131122063,17.60985458,157.69,157.68,4.65202906]
[1721131123161,11.26835458,157.69,157.68,4.65202906]
[1721131124868,17.60985458,157.69,157.68,4.65202906]
[1721131125042,1.26835458,157.69,157.68,4.65202906]
[1721131125240,1.26835458,157.7,157.68,4.65202906]
[1721131125666,1.26835458,157.7,157.69,18.6]
[1721131126153,1.26835458,157.7,157.68,4.65202906]
[1721131126354,1.26835458,157.7,157.68,23.25202906]
[1721131126554,1.26835458,157.7,157.68,4.65202906]
[1721131127071,1.26835458,157.7,157.69,4.65202906]
[1721131127372,46.26835458,157.7,157.69,4.65202906]
[1721131129268,10.0,157.72,157.69,23.25202906]
[1721131129451,1.26835458,157.72,157.7,18.6]
[1721131129647,1.26835458,157.72,157.71,18.6]
[1721131129952,7.60875458,157.72,157.69,39.10542906]
[1721131130360,7.60875458,157.72,157.69,23.25202906]
[1721131131062,17.60875458,157.72,157.69,4.65202906]
[1721131131241,51.3407,157.71,157.69,4.65202906]
[1721131131567,1.26835458,157.7,157.69,4.65202906]
[1721131136364,17.60785458,157.75,157.69,20.50582906]
[1721131136577,17.60785458,157.75,157.69,39.10582906]
[1721131136775,11.26835458,157.75,157.71,24.9404]
[1721131136978,11.26835458,157.75,157.72,24.9403]
[1721131137347,17.60745458,157.75,157.72,18.6]
[1721131138285,7.60745458,157.75,157.72,18.6]
[1721131138467,45.0,157.74,157.72,18.6]
[1721131140311,45.0,157.74,157.72,24.9403]
[1721131140492,52.60755458,157.75,157.72,18.6]
[1721131142570,6.3395,157.74,157.72,18.6]
[1721131142771,6.3395,157.74,157.71,18.6]
[1721131142966,6.3395,157.74,157.72,18.6]
[1721131143482,6.3395,157.74,157.71,18.6]
[1721131145467,1.26835458,157.73,157.71,18.6]
[1721131145669,7.60785458,157.74,157.72,18.6]
[1721131149692,6.3399,157.73,157.72,18.6]
[1721131149990,6.3399,157.73,157.71,18.6]
[1721131150290,1.26835458,157.74,157.69,4.65202906]
[1721131150291,46.26835458,157.72,157.69,4.65202906]
[1721131150491,6.341,157.71,157.69,4.65202906]
[1721131150672,7.60935458,157.71,157.69,23.25202906]